bitfinex/quotes_ETHUSD_20250406
["timestamp","ask_amount","ask_price","bid_price","bid_amount"]
[1743948220172,7.00572,1747.5,1747.2,41.138]
[1743948220384,3.0,1747.2,1747.1,0.05]
[1743948220875,3.0,1747.3,1747.1,0.05]
[1743948221195,0.06636648,1747.2,1747.1,0.05]
[1743948221363,4.07277648,1747.2,1747.1,0.05]
[1743948222084,4.62277648,1747.2,1747.1,0.05]
[1743948222304,7.00709,1746.9,1746.8,0.03027548]
[1743948222446,9.26785648,1746.9,1746.8,0.03027548]
[1743948222785,10.59533513,1746.9,1746.8,0.03027548]
[1743948222950,10.04533513,1746.9,1746.8,0.03027548]
[1743948223156,3.06636648,1746.9,1746.8,0.03027548]
[1743948223355,3.0,1746.9,1746.8,0.03027548]
[1743948223662,3.06636648,1746.9,1746.8,0.03027548]
[1743948224170,0.06636648,1747.1,1746.8,4.03738548]
[1743948224353,0.06636648,1747.4,1746.9,1.98898155]
[1743948224684,4.00639,1747.3,1746.9,1.528]
[1743948224847,7.07288648,1747.2,1746.9,1.528]
[1743948225042,3.06636648,1747.2,1746.9,1.528]
[1743948225782,4.0051,1747.8,1747.0,11.56385]
[1743948226078,4.0051,1747.8,1746.9,1.528]
[1743948226079,4.00549,1747.6,1747.1,7.557]
[1743948226281,3.0,1747.2,1747.1,7.557]
[1743948226579,1.71076648,1747.5,1747.1,7.557]
[1743948226879,7.00561,1747.6,1747.1,7.557]
[1743948227082,5.6491,1748.0,1747.3,4.00601]
[1743948227287,4.07059648,1748.2,1747.4,5.53394]
[1743948227445,4.0048,1747.9,1747.4,1.528]
[1743948227783,7.00552,1747.6,1747.1,9.085]
[1743948227946,3.06636648,1747.6,1747.2,7.556]
[1743948228151,7.07194648,1747.6,1747.2,7.556]
[1743948228351,7.00612,1747.4,1746.9,7.555]
[1743948228546,0.06636648,1747.3,1746.9,7.555]
[1743948228762,1.6444,1747.9,1746.9,7.555]
[1743948228763,4.00642,1747.2,1746.9,7.555]
[1743948228958,3.06636648,1747.4,1746.9,11.562]
[1743948229171,3.0,1747.4,1746.9,11.562]
[1743948229385,0.06636648,1747.3,1746.9,7.555]
[1743948229678,0.06636648,1747.4,1746.9,11.56191]
[1743948229884,3.0,1747.6,1747.1,4.00654]
[1743948230052,5.64915,1748.1,1747.2,0.05722648]
[1743948230251,4.0044,1748.1,1747.5,4.00561]
[1743948230582,4.0044,1748.1,1747.4,4.00594]
[1743948230583,3.0,1748.0,1747.6,7.555]
[1743948230880,0.06636648,1748.1,1747.6,7.555]
[1743948230881,3.46680648,1748.1,1747.6,7.555]
[1743948231177,4.00389,1748.3,1747.8,5.62983]
[1743948231385,0.06636648,1748.3,1747.8,1.6248]
[1743948231600,4.06977648,1748.6,1748.0,4.00439]
[1743948231759,0.06636648,1748.7,1748.3,1.6248]
[1743948232081,0.05,1748.9,1748.4,4.00354]
[1743948232385,0.11636648,1748.9,1748.3,5.68575306]
[1743948232597,4.0032,1748.7,1748.3,1.6248]
[1743948232760,3.0,1748.4,1748.1,7.554]
[1743948232951,4.00361,1748.5,1748.1,7.554]
[1743948233151,0.06636648,1748.6,1748.1,7.554]
[1743948233452,0.06636648,1748.6,1748.2,4.06121676]
[1743948233671,0.06636648,1748.6,1748.2,0.05719676]
[1743948233872,0.06636648,1748.6,1748.2,4.06129447]
[1743948234380,3.0,1748.3,1748.1,7.554]
[1743948234574,3.0,1748.3,1748.0,1.6248]
[1743948234882,7.0039,1748.3,1748.1,7.552]
[1743948235252,3.06636648,1748.4,1748.1,7.552]
[1743948235481,7.07004648,1748.4,1748.1,7.552]
[1743948235683,0.06636648,1748.4,1748.1,7.552]
[1743948235884,3.0,1748.7,1748.2,0.05720105]
[1743948236083,4.00361,1748.5,1748.1,7.552]
[1743948236287,0.06636648,1748.4,1748.1,7.552]
[1743948236598,3.0,1748.3,1748.1,7.552]
[1743948236902,0.06636648,1748.4,1748.1,7.552]
[1743948237213,4.00343,1748.5,1748.1,7.552]
[1743948237392,0.06636648,1748.6,1748.1,7.552]
[1743948237568,4.00403,1748.3,1748.0,9.1738]
[1743948237998,3.0,1748.1,1748.0,7.549]
[1743948238201,3.0,1748.3,1748.0,7.549]
[1743948238397,3.0,1748.6,1748.1,4.06133232]
[1743948238589,3.0,1748.6,1748.1,4.00413]
[1743948238803,2.027154,1748.8,1748.2,1.6339]
[1743948239022,0.11636648,1748.9,1748.3,0.05718891]
[1743948239173,0.05,1748.9,1748.6,4.00311]
[1743948239502,0.05,1748.9,1748.7,11.60812618]
[1743948239706,0.05,1748.9,1748.8,1.69107165]
[1743948239889,0.05,1748.9,1748.8,1.6339]
[1743948240587,3.05,1748.9,1748.7,7.548]
[1743948240787,3.05,1748.9,1748.7,7.60517971]
[1743948241201,3.05,1748.9,1748.7,7.548]
[1743948241426,7.00274,1748.8,1748.6,41.182]
[1743948241716,3.05,1748.9,1748.6,41.182]
[1743948241914,0.05,1748.9,1748.7,1.6339]
[1743948242204,0.05,1748.9,1748.8,4.00274]
[1743948242368,0.05,1748.9,1748.7,1.6339]
[1743948242568,4.00277,1748.8,1748.6,41.182]
[1743948242769,7.00297,1748.7,1748.6,41.182]
[1743948244178,3.0,1748.7,1748.6,41.182]
[1743948244785,3.0,1748.7,1748.6,48.724]
[1743948245509,7.76961148,1748.7,1748.6,41.182]
[1743948245708,3.0,1748.7,1748.6,41.182]
[1743948245908,7.06933648,1748.7,1748.6,41.182]
[1743948246108,3.0,1748.7,1748.6,41.182]
[1743948246313,7.76962048,1748.7,1748.6,41.182]
[1743948246820,0.05,1748.9,1748.6,41.182]
[1743948246974,4.00274,1748.8,1748.7,7.541]
[1743948247174,4.00274,1748.8,1748.6,41.182]
[1743948247175,7.00297,1748.7,1748.6,41.182]
[1743948247992,7.00404,1748.3,1748.0,7.54]
[1743948248315,4.00446,1748.1,1747.9,48.715]
[1743948248889,0.06636648,1748.0,1747.9,41.175]
[1743948249188,4.00412,1748.2,1747.9,41.175]
[1743948249397,4.07048648,1748.2,1747.9,41.175]
[1743948249597,4.00321,1748.6,1748.1,1.5851]
[1743948249791,4.06957648,1748.6,1748.2,7.539]
[1743948250185,3.0,1748.6,1748.2,7.539]
[1743948250382,7.00326,1748.6,1748.2,7.539]
[1743948250606,3.0,1748.4,1748.2,7.539]
[1743948250823,0.06636648,1748.8,1748.2,8.50860482]
[1743948250985,0.11636648,1748.9,1748.2,12.45551]
[1743948251183,3.0,1748.7,1748.2,12.45551]
[1743948251386,0.06636648,1748.7,1748.2,7.539]
[1743948251606,4.00343,1748.5,1748.2,7.539]
[1743948251799,3.0,1748.4,1748.2,7.539]
[1743948251998,3.0,1748.6,1748.2,7.539]
[1743948252199,3.0,1748.4,1748.2,7.539]
[1743948252401,7.00335,1748.6,1748.2,7.539]
[1743948252710,4.00346,1748.5,1748.2,7.539]
[1743948253095,3.0,1748.4,1748.2,7.539]
[1743948253294,3.0,1748.5,1748.2,7.539]
[1743948253691,0.05,1748.9,1748.2,8.45141]
[1743948253904,3.05,1748.9,1748.5,5.61764]
[1743948254106,0.05,1748.9,1748.6,4.0602312]
[1743948254310,0.05,1748.9,1748.7,7.536]
[1743948254689,4.00274,1748.8,1748.7,7.536]
[1743948255024,4.05261,1748.9,1748.7,7.536]
[1743948255517,4.00274,1748.8,1748.7,7.536]
[1743948255723,7.00274,1748.8,1748.7,7.536]
[1743948255900,8.17464148,1748.8,1748.7,7.536]
[1743948256096,8.17464148,1748.8,1748.3,1.6143]
[1743948256097,4.0034,1748.6,1748.3,9.1483]
[1743948256298,7.00298,1748.7,1748.3,9.1483]
[1743948256509,7.06913648,1748.8,1748.3,9.1483]
[1743948256731,4.003,1748.7,1748.3,9.1483]
[1743948256896,7.06913648,1748.8,1748.3,9.1483]
[1743948257096,3.06636648,1748.8,1748.3,13.15197]
[1743948257432,0.06636648,1748.8,1748.3,9.1483]
[1743948257727,3.0,1748.4,1748.3,7.534]
[1743948258128,7.06961648,1748.6,1748.3,7.534]
[1743948258338,8.00708,1748.5,1748.0,1.6143]
[1743948258535,3.0,1748.1,1747.6,1.6143]
[1743948258708,4.00458,1748.0,1747.7,7.532]
[1743948258909,4.00452,1748.1,1747.7,7.532]
[1743948259114,3.0,1748.0,1747.7,7.532]
[1743948259310,4.00481,1747.9,1747.7,7.532]
[1743948259515,7.00461,1748.0,1747.6,42.7883]
[1743948259719,7.07097648,1748.0,1747.7,7.532]
[1743948260027,0.06636648,1748.0,1747.8,4.005]
[1743948260210,0.06636648,1748.6,1748.0,1.6143]
[1743948260402,4.00378,1748.4,1748.0,1.6143]
[1743948260599,7.00369,1748.4,1748.0,1.6143]
[1743948260804,11.00756,1748.4,1748.0,1.6143]
[1743948261037,7.00369,1748.4,1748.0,1.6143]
[1743948261351,3.0,1748.1,1747.8,1.6143]
[1743948261514,3.0,1748.1,1747.9,7.53]
[1743948262105,7.07079648,1748.1,1747.9,7.53]
[1743948262621,4.00457,1748.0,1747.9,7.53]
[1743948262830,8.70109648,1748.1,1747.9,7.53]
[1743948262831,3.0,1748.1,1747.9,7.53]
[1743948263004,0.06636648,1748.1,1747.9,0.753]
[1743948263201,1.6303,1748.6,1748.0,7.529]
[1743948263407,4.00372,1748.4,1748.1,7.529]
[1743948263617,7.0038,1748.4,1748.1,7.529]
[1743948264718,3.0,1748.4,1748.1,7.529]
[1743948265317,3.0,1748.4,1747.8,45.18086]
[1743948265318,4.00411,1748.2,1747.8,41.176]
[1743948265509,3.0,1748.1,1747.9,7.528]
[1743948265707,7.07075648,1748.1,1747.8,41.176]
[1743948265911,4.00459,1748.0,1747.8,48.704]
[1743948266141,7.07075648,1748.1,1747.8,48.704]
[1743948266344,4.07040648,1748.3,1747.8,52.70894]
[1743948266656,7.00389,1748.3,1747.8,52.70893]
[1743948266940,0.06636648,1748.2,1747.8,48.704]
[1743948267518,0.06636648,1748.2,1747.8,52.70896]
[1743948267724,0.06636648,1748.2,1747.8,48.704]
[1743948267943,0.06636648,1748.2,1747.8,52.70901]
[1743948268143,0.06636648,1748.2,1747.9,7.526]
[1743948268341,3.0,1748.3,1747.9,7.58320727]
[1743948268543,3.06636648,1748.4,1748.0,4.00449]
[1743948268841,3.06636648,1748.4,1748.0,4.00454]
[1743948269029,7.07006648,1748.4,1747.9,11.53072]
[1743948269223,7.07006648,1748.4,1747.9,11.53071]
[1743948269421,4.00392,1748.3,1747.9,7.526]
[1743948269627,7.00457,1748.0,1747.9,7.526]
[1743948269836,3.0,1748.0,1747.9,7.526]
[1743948270244,3.0,1748.0,1747.8,48.701]
[1743948270444,7.07104648,1748.0,1747.8,48.701]
[1743948271116,4.0048,1747.9,1747.8,41.176]
[1743948271312,3.0,1747.9,1747.8,41.176]
[1743948271731,3.0,1747.9,1747.8,48.7]
[1743948271943,7.0048,1747.9,1747.8,48.7]
[1743948272845,3.0,1747.9,1747.8,48.7]
[1743948273049,7.0048,1747.9,1747.8,48.7]
[1743948273432,7.07116648,1747.9,1747.8,48.7]
[1743948273629,3.0,1747.8,1747.4,1.557]
[1743948273838,7.00572,1747.5,1747.3,7.523]
[1743948274549,0.06636648,1747.4,1747.3,7.523]
[1743948275048,7.00629,1747.3,1747.1,41.181]
[1743948275253,3.0,1747.3,1747.1,41.181]
[1743948275828,0.06636648,1747.4,1747.1,45.18745]
[1743948276140,4.00572,1747.5,1747.1,41.181]
[1743948276344,3.0,1747.6,1747.2,0.05722658]
[1743948276855,7.00554,1747.6,1747.2,0.05722658]
[1743948277227,7.00554,1747.6,1747.1,49.19397]
[1743948277428,3.0,1747.6,1747.2,4.06361627]
[1743948278034,7.00551,1747.6,1747.2,0.05722627]
[1743948278237,7.00551,1747.6,1747.1,45.18742]
[1743948278423,3.0,1747.6,1747.3,7.521]
[1743948278852,3.0,1747.5,1747.3,7.521]
[1743948279060,3.0,1747.6,1747.3,7.57822532]
[1743948279282,4.00526,1747.7,1747.3,7.57822532]
[1743948279283,0.06636648,1747.8,1747.4,4.00593]
[1743948279422,5.67703648,1748.2,1747.7,4.00513]
[1743948279627,4.00492,1747.9,1747.5,1.5154]
[1743948279955,3.0,1747.6,1747.4,7.519]
[1743948280664,4.00512,1747.8,1747.4,7.519]
[1743948280960,7.00482,1747.9,1747.5,0.05721825]
[1743948281167,4.00541,1747.7,1747.4,7.519]
[1743948281360,7.00503,1747.8,1747.4,7.519]
[1743948281867,4.00593,1747.5,1747.2,1.5154]
[1743948282166,4.00598,1747.4,1747.2,9.0334]
[1743948282469,4.00598,1747.4,1747.1,48.699]
[1743948282470,3.0,1747.3,1747.1,48.699]
[1743948282765,7.00641,1747.2,1747.1,41.181]
[1743948283336,7.07277648,1747.2,1747.1,41.181]
[1743948283669,7.00709,1746.9,1746.8,0.03027548]
[1743948283872,7.07345648,1746.9,1746.8,0.03027548]
[1743948285564,7.50616858,1746.9,1746.8,0.03027548]
[1743948285771,8.81812144,1746.9,1746.8,0.03027548]
[1743948286155,9.36812144,1746.9,1746.8,0.03027548]
[1743948286344,10.97462144,1746.9,1746.8,0.03027548]
[1743948287451,10.42462144,1746.9,1746.8,0.03027548]
[1743948287974,9.11266858,1746.9,1746.8,0.03027548]
[1743948288150,10.42462144,1746.9,1746.8,0.03027548]
[1743948288563,4.00645,1747.2,1746.8,0.03027548]
[1743948288751,5.61245,1747.4,1746.8,4.09463319]
[1743948289072,5.59258,1747.7,1746.9,42.7664]
[1743948289332,0.29842673,1747.8,1747.5,4.00571]
[1743948289501,0.06636648,1747.7,1747.3,7.515]
[1743948289792,3.0,1747.4,1747.0,9.0744]
[1743948289947,3.0,1747.2,1747.0,9.0744]
[1743948290343,3.0,1747.4,1747.0,11.52284]
[1743948290544,4.00521,1747.8,1747.0,11.52284]
[1743948290545,0.06636648,1747.7,1747.2,4.00622]
[1743948290743,4.00535,1747.7,1747.3,0.05722229]
[1743948291244,4.00535,1747.7,1747.2,4.00622]
[1743948291482,3.0,1747.7,1747.4,1.5584]
[1743948291658,4.00502,1747.9,1747.5,9.0724]
[1743948291862,4.07094648,1748.0,1747.5,9.97964]
[1743948292048,4.00458,1748.0,1747.5,9.97964]
[1743948292257,4.07116648,1747.9,1747.5,9.0724]
[1743948292578,7.07116648,1747.9,1747.5,9.0724]
[1743948292779,4.07116648,1747.9,1747.5,9.0724]
[1743948292974,4.07094648,1748.0,1747.5,13.13531703]
[1743948293167,7.00491,1747.9,1747.6,7.513]
[1743948293747,11.00986,1747.9,1747.6,7.513]
[1743948293948,7.00491,1747.9,1747.6,7.513]
[1743948294854,3.0,1747.9,1747.6,7.513]
[1743948295286,0.06636648,1748.0,1747.6,8.42014]
[1743948295474,7.00426,1748.2,1747.7,4.06247666]
[1743948295667,4.00436,1748.1,1747.6,12.42559]
[1743948296167,3.06636648,1748.3,1747.7,4.00516]
[1743948296370,7.07037648,1748.3,1747.9,1.6328]
[1743948296568,11.07445648,1748.3,1747.9,1.6328]
[1743948296773,4.0033,1748.6,1748.1,4.00424]
[1743948296982,0.06636648,1748.7,1748.2,7.909424]
[1743948297148,4.00346,1748.5,1748.2,7.509]
[1743948297478,4.06982648,1748.5,1748.2,7.509]
[1743948297679,7.00367,1748.4,1748.2,7.509]
[1743948297878,4.00423,1748.2,1748.1,7.507]
[1743948299165,4.00423,1748.2,1748.0,7.506]
[1743948299969,4.00434,1748.1,1748.0,7.506]
[1743948300173,4.07070648,1748.1,1748.0,7.506]
[1743948300376,7.07070648,1748.1,1748.0,7.506]
[1743948300969,3.0,1748.0,1747.6,1.6328]
[1743948301172,7.00618,1747.3,1747.2,41.19]
[1743948301513,3.06636648,1747.3,1747.2,41.19]
[1743948301810,3.0,1747.5,1747.2,41.19]
[1743948302111,4.00608,1747.4,1747.2,41.19]
[1743948302422,4.00606,1747.4,1747.2,41.19]
[1743948302918,7.00572,1747.5,1747.2,41.19]
[1743948303374,3.0,1747.6,1747.2,45.19628]
[1743948303576,0.06636648,1747.8,1747.4,5.63873]
[1743948303813,4.07140648,1747.8,1747.4,1.6328]
[1743948304017,3.0,1747.7,1747.4,5.63865]
[1743948304173,0.06636648,1748.0,1747.5,8.01118]
[1743948304390,4.00446,1748.1,1747.6,11.56467273]
[1743948304731,3.0,1748.0,1747.6,11.50737]
[1743948304895,4.07049648,1748.2,1747.7,5.63793]
[1743948305101,3.0,1748.1,1747.7,1.6328]
[1743948305319,7.00436,1748.1,1747.7,1.6328]
[1743948305611,7.00436,1748.1,1747.7,5.63806]
[1743948305785,3.0,1748.1,1747.7,6.30451457]
[1743948305981,4.07049648,1748.2,1747.7,6.30451457]
[1743948305982,0.06636648,1748.2,1747.7,2.29925457]
[1743948306182,0.06636648,1748.4,1747.8,0.05720725]
[1743948306422,7.00437,1748.1,1747.7,2.29925457]
[1743948306619,7.00437,1748.1,1747.8,0.05720262]
[1743948306921,7.00437,1748.1,1747.7,2.29925457]
[1743948307095,3.0,1748.1,1747.8,0.05720787]
[1743948307507,4.00491,1747.9,1747.7,1.6328]
[1743948307821,3.0,1748.0,1747.7,9.1328]
[1743948307822,3.0,1747.8,1747.7,9.1328]
[1743948308184,3.0,1747.7,1747.2,41.19]
[1743948308388,7.00545,1747.7,1747.3,9.1318]
[1743948308588,7.00545,1747.7,1747.3,9.1890223]
[1743948309420,0.06636648,1747.8,1747.3,1.6900223]
[1743948309591,4.00492,1747.9,1747.4,7.498]
[1743948309786,4.00492,1747.9,1747.5,4.06293659]
[1743948310186,4.00492,1747.9,1747.5,0.05721659]
[1743948310437,7.00516,1747.8,1747.5,0.05721659]
[1743948310677,3.06636648,1747.8,1747.4,7.498]
[1743948310789,3.0,1747.8,1747.4,4.06307645]
[1743948311122,3.0,1747.6,1747.5,7.497]
[1743948311517,0.06636648,1747.7,1747.5,7.497]
[1743948311730,3.0,1747.6,1747.5,7.497]
[1743948312033,3.0,1747.6,1747.4,7.497]
[1743948312385,0.06636648,1747.7,1747.4,7.497]
[1743948312622,7.07118648,1747.9,1747.4,12.42155247]
[1743948312816,3.0,1747.9,1747.6,4.00544]
[1743948313144,4.00376,1748.4,1747.9,4.00472]
[1743948313287,4.00428,1748.2,1748.0,7.496]
[1743948313620,4.00501,1747.9,1747.4,1.5214]
[1743948313821,3.0,1747.6,1747.4,1.5214]
[1743948314192,3.0,1747.6,1747.5,7.495]
[1743948314619,7.00549,1747.6,1747.5,7.495]
[1743948314994,3.0,1747.7,1747.5,7.495]
[1743948315200,3.0,1747.8,1747.5,12.25021]
[1743948315432,3.0,1747.8,1747.4,4.00586]
[1743948315633,7.00507,1747.8,1747.6,7.494]
[1743948315925,4.07162648,1747.7,1747.6,7.494]
[1743948316418,4.00597,1747.4,1747.2,42.7596]
[1743948316620,8.0121,1747.4,1747.2,50.2536]
[1743948316823,3.06636648,1747.5,1747.2,50.2536]
[1743948316824,3.0,1747.5,1747.2,50.2536]
[1743948317323,0.06636648,1747.6,1747.3,4.0061]
[1743948317527,4.00473,1748.0,1747.4,0.05722072]
[1743948317819,4.00508,1747.8,1747.6,1.5696]
[1743948318027,3.0,1747.7,1747.6,9.0626]
[1743948318201,3.0,1747.7,1747.6,7.493]
[1743948318706,7.00526,1747.7,1747.6,7.493]
[1743948319019,4.00432,1748.2,1747.7,1.6107]
[1743948319224,0.06636648,1748.1,1747.7,1.6107]
[1743948319413,3.0,1747.8,1747.7,1.6107]
[1743948319597,7.00526,1747.7,1747.6,7.493]
[1743948319992,7.00587,1747.5,1747.2,41.19]
[1743948320230,11.01181,1747.5,1747.3,7.491]
[1743948320532,3.0,1747.3,1747.2,48.681]
[1743948320690,4.00526,1747.7,1747.2,54.32394453]
[1743948320896,0.06636648,1748.1,1747.3,0.05723221]
[1743948321101,4.0057,1747.6,1747.3,0.05722009]
[1743948321823,4.00595,1747.4,1747.3,0.05722009]
[1743948322027,7.07231648,1747.4,1747.2,48.68]
[1743948322190,7.00574,1747.5,1747.2,41.19]
[1743948322398,7.07210648,1747.5,1747.2,41.19]
[1743948322724,4.00618,1747.3,1747.2,48.679]
[1743948323023,7.00618,1747.3,1747.2,48.679]
[1743948323615,4.00537,1747.7,1747.2,54.29601]
[1743948323819,4.00559,1747.6,1747.2,50.2897]
[1743948324193,3.0,1747.5,1747.3,7.488]
[1743948324406,8.01125,1747.6,1747.3,7.488]
[1743948324598,8.01164,1747.5,1747.3,7.488]
[1743948324807,3.0,1747.4,1747.3,7.488]
[1743948325130,4.00445,1748.1,1747.5,4.00554]
[1743948325329,1.6101,1748.5,1747.7,1.6107]
[1743948325330,4.00411,1748.2,1747.7,1.6107]
[1743948325500,3.0,1748.0,1747.8,7.54420535]
[1743948325701,3.0,1748.0,1747.8,7.487]
[1743948326109,3.0,1748.1,1747.8,7.487]
[1743948326329,7.00446,1748.1,1747.7,1.6107]
[1743948326497,3.0,1747.8,1747.7,9.0977]
[1743948326700,3.0,1747.6,1747.2,45.1964]
[1743948326913,0.06636648,1747.9,1747.4,1.6107]
[1743948327101,7.00473,1748.0,1747.5,4.00572]
[1743948327511,7.00473,1748.0,1747.6,0.05721327]
[1743948327902,7.00473,1748.0,1747.7,7.486]
[1743948328103,4.00489,1747.9,1747.6,0.05721327]
[1743948328303,4.00506,1747.8,1747.7,7.485]
[1743948328605,4.00399,1748.3,1747.8,4.00492]
[1743948328800,4.00424,1748.2,1747.8,4.00492]
[1743948329006,4.00462,1748.0,1747.7,9.0957]
[1743948329205,3.0,1747.9,1747.7,9.0957]
[1743948329536,7.00462,1748.0,1747.7,9.0957]
[1743948329736,3.0,1748.0,1747.7,9.0957]
[1743948329957,4.00487,1747.9,1747.8,7.484]
[1743948330233,4.00377,1748.4,1747.9,4.00472]
[1743948330407,7.00394,1748.3,1748.0,1.5927]
[1743948330599,4.00449,1748.1,1747.7,1.5927]
[1743948330806,4.0046,1748.0,1747.8,7.483]
[1743948331120,3.0,1747.9,1747.7,1.5927]
[1743948331320,3.0,1748.0,1747.8,7.483]
[1743948331634,7.00466,1748.0,1747.8,7.483]
[1743948332007,0.2728146,1747.9,1747.7,1.5927]
[1743948332236,7.00481,1747.9,1747.8,7.482]
[1743948332643,4.00379,1748.4,1747.9,4.00465]
[1743948332935,4.00459,1748.0,1747.8,8.38947]
[1743948333144,3.0,1748.1,1747.8,11.487]
[1743948333302,7.00403,1748.3,1747.9,0.05720757]
[1743948333503,3.0,1748.3,1748.0,5.59726]
[1743948333709,0.06636648,1748.7,1748.0,6.16270676]
[1743948333913,0.06636648,1748.7,1748.0,2.15814676]
[1743948333914,4.00395,1748.3,1748.0,2.15814676]
[1743948334109,3.0,1748.3,1748.0,2.15814676]
[1743948334307,3.0,1748.2,1748.0,1.5927]
[1743948334634,0.06636648,1748.5,1748.1,7.481]
[1743948334840,3.0,1748.4,1748.1,7.481]
[1743948335134,3.27568832,1748.4,1748.1,11.48524]
[1743948335321,0.27568832,1748.4,1748.1,15.48943]
[1743948335529,0.05,1748.9,1748.4,1.6628]
[1743948335725,4.28079771,1748.8,1748.5,0.05717613]
[1743948335911,4.00275,1748.8,1748.6,7.479]
[1743948336112,0.25441176,1748.7,1748.6,7.479]
[1743948336442,0.05,1748.9,1748.7,4.00296]
[1743948336734,0.05,1748.9,1748.8,0.05717613]
[1743948336908,0.05,1748.9,1748.7,0.05717615]
[1743948337306,0.05,1748.9,1748.8,7.478]
[1743948337527,0.05,1748.9,1748.8,13.14354]
[1743948337739,0.05,1748.9,1748.8,9.1408]
[1743948337939,0.05,1748.9,1748.8,13.14354]
[1743948338611,0.05,1748.9,1748.8,9.1408]
[1743948338805,0.05,1748.9,1748.8,9.1979723]
[1743948339152,0.05,1748.9,1748.8,13.2007123]
[1743948339444,4.11681648,1749.9,1749.5,1.6628]
[1743948339605,4.11681648,1749.9,1749.8,5.66325]
[1743948339606,0.05,1749.9,1749.8,5.66325]
[1743948339803,0.05,1749.9,1749.8,1.71993609]
[1743948340206,0.05,1749.9,1749.8,9.1378]
[1743948340531,0.05,1749.9,1749.8,9.19494191]
[1743948340735,0.05,1749.9,1749.8,13.13825]
[1743948341144,0.05,1749.9,1749.8,13.68825]
[1743948341553,0.05,1750.9,1750.5,5.66156]
[1743948341846,0.05,1750.9,1750.6,7.53011282]
[1743948342051,0.05,1750.9,1750.7,3.9984]
[1743948342251,0.05,1750.9,1750.8,7.472]
[1743948342437,3.99818,1750.8,1750.5,1.6628]
[1743948342647,3.99818,1750.8,1750.6,7.472]
[1743948343022,3.27200025,1750.7,1750.6,7.472]
[1743948343251,4.27040025,1750.7,1750.6,7.472]
[1743948343616,7.27040025,1750.7,1750.6,7.472]
[1743948343821,3.0,1750.5,1750.4,41.174]
[1743948344117,3.0,1750.5,1750.4,48.642]
[1743948344321,3.0,1750.7,1750.4,48.642]
[1743948344556,4.26973233,1750.6,1750.4,48.642]
[1743948344726,3.0,1750.5,1750.4,41.174]
[1743948344923,7.26951076,1750.5,1750.4,41.174]
[1743948345221,3.27066076,1750.5,1750.4,41.174]
[1743948345468,0.27066076,1750.5,1750.4,41.174]
[1743948345667,0.27066076,1750.5,1750.4,45.17308]
[1743948345824,3.05,1750.9,1750.5,3.99869]
[1743948346023,3.05,1750.9,1750.6,7.467]
[1743948346248,7.04806,1750.9,1750.6,7.467]
[1743948346666,3.05,1750.9,1750.6,7.467]
[1743948346864,7.04812,1750.9,1750.6,7.467]
[1743948347069,3.99821,1750.8,1750.4,45.17298]
[1743948347224,7.04812,1750.9,1750.7,7.465]
[1743948347425,11.04628,1750.9,1750.7,7.465]
[1743948347641,7.04812,1750.9,1750.7,7.465]
[1743948348268,3.99817,1750.8,1750.7,7.465]
[1743948349067,3.05,1750.9,1750.7,7.465]
[1743948349367,7.04796,1750.9,1750.7,7.465]
[1743948349869,3.99817,1750.8,1750.7,7.465]
[1743948350074,0.27355674,1750.8,1750.4,41.174]
[1743948350370,7.04808,1750.9,1750.7,7.461]
[1743948350870,11.0462,1750.9,1750.7,7.461]
[1743948351070,3.0,1750.7,1750.5,0.05711637]
[1743948351269,6.99842,1750.7,1750.4,41.174]
[1743948351468,6.99885,1750.5,1750.4,41.174]
[1743948351993,8.69931648,1750.5,1750.4,41.174]
[1743948352183,7.00022,1749.9,1749.8,7.46]
[1743948352331,3.0,1749.9,1749.8,7.46]
[1743948352536,3.0,1749.9,1749.8,0.05714449]
[1743948352771,3.0,1749.9,1749.8,7.458]
[1743948353073,3.0,1749.9,1749.8,7.51514377]
[1743948353364,3.0,1749.9,1749.8,11.51559377]
[1743948353664,3.0,1749.9,1749.8,11.45845]
[1743948353976,3.0,1750.4,1750.0,3.99991]
[1743948354183,3.9988,1750.6,1750.1,4.45677921]
[1743948354348,3.0,1750.4,1750.1,4.05678821]
[1743948354535,3.0,1750.4,1750.1,3.99966]
[1743948354933,6.99917,1750.4,1749.9,5.64254]
[1743948355135,3.99966,1750.2,1749.9,1.6425]
[1743948355366,3.0,1750.1,1750.0,7.51313572]
[1743948356559,0.2264843,1750.1,1750.0,7.51313572]
[1743948356746,3.9995,1750.3,1750.0,7.51313572]
[1743948356941,3.0,1750.3,1750.1,7.455]
[1743948357142,3.0,1750.5,1750.1,11.4546]
[1743948357480,6.99845,1750.7,1750.3,1.6425]
[1743948357675,6.99845,1750.7,1750.3,5.64181]
[1743948357850,6.99845,1750.7,1750.4,0.05712008]
[1743948358051,3.9982,1750.8,1750.4,4.56897301]
[1743948358464,8.0461,1750.9,1750.4,4.56882301]
[1743948358745,3.9988,1750.6,1750.4,0.56989301]
[1743948358973,6.99888,1750.5,1750.3,1.6425]
[1743948359176,6.99908,1750.4,1750.3,1.6425]
[1743948359390,3.0,1750.4,1750.3,1.6425]